[Event "Early-Titled-Tuesday-Blitz-February-06-2024"]
[Site "Chess.com"]
[Date "2024.02.06"]
[Round "11"]
[White "smotherhubbard"]
[Black "LornerAcosta"]
[Result "0-1"]
[WhiteElo "2377"]
[BlackElo "2517"]
[TimeControl "180+1"]
[EndTime "10:07:05 PST"]
[Termination "LornerAcosta won by resignation"]

1. d4 {[%clk 0:03:00.9]} 1... d5 {[%clk 0:02:53.3]} 2. c4 {[%clk 0:03:00.8]}
2... e6 {[%clk 0:02:52.7]} 3. Nc3 {[%clk 0:03:00.6]} 3... Nf6 {[%clk 0:02:53.1]}
4. cxd5 {[%clk 0:02:59.9]} 4... exd5 {[%clk 0:02:53]} 5. Bg5 {[%clk 0:03:00.4]}
5... Nbd7 {[%clk 0:02:52.2]} 6. e3 {[%clk 0:02:59.5]} 6... c6 {[%clk 0:02:52.9]}
7. Qc2 {[%clk 0:02:59]} 7... Be7 {[%clk 0:02:53.2]} 8. Bd3 {[%clk 0:02:59.1]}
8... O-O {[%clk 0:02:53.2]} 9. Nge2 {[%clk 0:02:59.1]} 9... Re8 {[%clk
0:02:53.4]} 10. f3 {[%clk 0:02:58.3]} 10... Nf8 {[%clk 0:02:53.3]} 11. O-O
{[%clk 0:02:57.4]} 11... Ng6 {[%clk 0:02:51.3]} 12. e4 {[%clk 0:02:57.2]} 12...
dxe4 {[%clk 0:02:47.1]} 13. fxe4 {[%clk 0:02:58.1]} 13... Ng4 {[%clk 0:02:47]}
14. Bd2 {[%clk 0:02:56.6]} 14... c5 {[%clk 0:02:35.1]} 15. Bc4 {[%clk
0:02:53.3]} 15... cxd4 {[%clk 0:01:21.3]} 16. Bxf7+ {[%clk 0:02:39.1]} 16... Kh8
{[%clk 0:01:21]} 17. Nd5 {[%clk 0:02:27.2]} 17... d3 {[%clk 0:01:00.3]} 18. Qxd3
{[%clk 0:02:14.4]} 18... Bc5+ {[%clk 0:00:58.7]} 19. Kh1 {[%clk 0:02:09]} 19...
N6e5 {[%clk 0:00:56.1]} 20. Qg3 {[%clk 0:01:56]} 20... Rf8 {[%clk 0:00:54.6]}
21. Bh5 {[%clk 0:01:21.5]} 21... Be6 {[%clk 0:00:16]} 22. Nef4 {[%clk
0:01:10.4]} 22... Bxd5 {[%clk 0:00:10]} 23. Nxd5 {[%clk 0:01:09.3]} 23... Nf2+
{[%clk 0:00:08.4]} 24. Rxf2 {[%clk 0:01:08.9]} 24... Rxf2 {[%clk 0:00:07.9]} 25.
Bc3 {[%clk 0:01:01]} 25... Qf8 {[%clk 0:00:08.1]} 26. h3 {[%clk 0:00:56.6]}
26... Rf1+ {[%clk 0:00:08.1]} 27. Kh2 {[%clk 0:00:51.2]} 27... Bg1+ {[%clk
0:00:08.1]} 28. Kh1 {[%clk 0:00:50.1]} 28... Bf2+ {[%clk 0:00:08.1]} 29. Rxf1
{[%clk 0:00:45.8]} 29... Bxg3 {[%clk 0:00:08.5]} 30. Rxf8+ {[%clk 0:00:44.3]}
30... Rxf8 {[%clk 0:00:09.4]} 31. Be2 {[%clk 0:00:41.9]} 31... Nc6 {[%clk
0:00:08.9]} 32. Ne3 {[%clk 0:00:29.6]} 32... Be5 {[%clk 0:00:08.5]} 33. Bf3
{[%clk 0:00:20]} 33... Bxc3 {[%clk 0:00:08.4]} 34. bxc3 {[%clk 0:00:18.8]} 34...
Ne5 {[%clk 0:00:09]} 35. Nf5 {[%clk 0:00:18.4]} 35... Nxf3 {[%clk 0:00:08]} 36.
gxf3 {[%clk 0:00:19.3]} 36... Rc8 {[%clk 0:00:07.6]} 37. Kg2 {[%clk 0:00:16.3]}
37... Rxc3 {[%clk 0:00:07.1]} 38. Kg3 {[%clk 0:00:11.8]} 38... g6 {[%clk
0:00:07.3]} 39. Nd6 {[%clk 0:00:09.5]} 39... b6 {[%clk 0:00:05.8]} 40. e5 {[%clk
0:00:06.5]} 40... Kg7 {[%clk 0:00:04.6]} 41. Kf4 {[%clk 0:00:06]} 41... Kf8
{[%clk 0:00:03.2]} 42. Ke4 {[%clk 0:00:05]} 42... Ke7 {[%clk 0:00:02.8]} 43. f4
{[%clk 0:00:05]} 43... Ra3 {[%clk 0:00:03.5]} 44. f5 {[%clk 0:00:03.4]} 44...
gxf5+ {[%clk 0:00:03.8]} 45. Nxf5+ {[%clk 0:00:02.6]} 45... Kf7 {[%clk
0:00:04.4]} 46. Nd4 {[%clk 0:00:03]} 46... Rxa2 {[%clk 0:00:04.2]} 47. Kd5
{[%clk 0:00:03.9]} 47... Rd2 {[%clk 0:00:03.7]} 48. e6+ {[%clk 0:00:02.5]} 48...
Ke7 {[%clk 0:00:03.7]} 49. Ke5 {[%clk 0:00:03.4]} 49... Rxd4 {[%clk 0:00:03.2]}
50. Kxd4 {[%clk 0:00:04.3]} 50... Kxe6 {[%clk 0:00:03.7]} 51. Kc4 {[%clk
0:00:04.7]} 51... a5 {[%clk 0:00:04.6]} 52. Kb5 {[%clk 0:00:05.5]} 52... Kf6
{[%clk 0:00:05.3]} 53. Ka4 {[%clk 0:00:05.2]} 53... Kg5 {[%clk 0:00:05.7]} 54.
Kb5 {[%clk 0:00:06.1]} 54... Kh4 {[%clk 0:00:06.3]} 0-1

[Event "Early-Titled-Tuesday-Blitz-February-06-2024"]
[Site "Chess.com"]
[Date "2024.02.06"]
[Round "11"]
[White "RandomNoob04"]
[Black "snowlord"]
[Result "0-1"]
[WhiteElo "2614"]
[BlackElo "2864"]
[TimeControl "180+1"]
[EndTime "10:07:07 PST"]
[Termination "snowlord won by resignation"]

1. e4 {[%clk 0:03:00.9]} 1... e6 {[%clk 0:02:59.2]} 2. d4 {[%clk 0:03:00.3]}
2... d5 {[%clk 0:02:59.6]} 3. exd5 {[%clk 0:03:01.2]} 3... exd5 {[%clk
0:02:59.7]} 4. Nf3 {[%clk 0:03:02.1]} 4... Nf6 {[%clk 0:03:00]} 5. Bd3 {[%clk
0:03:02.1]} 5... c5 {[%clk 0:03:00.3]} 6. O-O {[%clk 0:03:01.5]} 6... c4 {[%clk
0:03:00.5]} 7. Re1+ {[%clk 0:03:02.2]} 7... Be7 {[%clk 0:03:00.9]} 8. Bf1 {[%clk
0:03:03.1]} 8... O-O {[%clk 0:03:01.3]} 9. b3 {[%clk 0:03:04]} 9... cxb3 {[%clk
0:03:02]} 10. axb3 {[%clk 0:03:04.9]} 10... Nc6 {[%clk 0:03:02.7]} 11. Ne5
{[%clk 0:03:02.2]} 11... Ne4 {[%clk 0:02:53.2]} 12. Nxc6 {[%clk 0:02:54.3]}
12... bxc6 {[%clk 0:02:54.1]} 13. Ba3 {[%clk 0:02:51]} 13... Bxa3 {[%clk
0:02:43.9]} 14. Rxa3 {[%clk 0:02:51.9]} 14... Qf6 {[%clk 0:02:43.6]} 15. Qe2
{[%clk 0:02:47.2]} 15... Qxd4 {[%clk 0:02:42]} 16. Ra4 {[%clk 0:02:27.9]} 16...
Qb6 {[%clk 0:02:17.9]} 17. Qf3 {[%clk 0:02:20.2]} 17... Bg4 {[%clk 0:02:01.9]}
18. Qf4 {[%clk 0:02:11.4]} 18... Be6 {[%clk 0:01:37.9]} 19. Re3 {[%clk
0:01:57.3]} 19... a5 {[%clk 0:01:22.2]} 20. Bd3 {[%clk 0:01:54.8]} 20... Nc5
{[%clk 0:01:09.4]} 21. Rg3 {[%clk 0:01:43.3]} 21... Nxd3 {[%clk 0:00:58.1]} 22.
Rxg7+ {[%clk 0:01:12.9]} 22... Kh8 {[%clk 0:00:46.9]} 23. cxd3 {[%clk 0:00:57]}
23... Qxb3 {[%clk 0:00:41.4]} 24. Rxh7+ {[%clk 0:00:52]} 24... Kxh7 {[%clk
0:00:42.3]} 25. Qh4+ {[%clk 0:00:52.1]} 25... Kg6 {[%clk 0:00:39.7]} 26. Qg3+
{[%clk 0:00:52.3]} 26... Kf6 {[%clk 0:00:32.4]} 27. Qh4+ {[%clk 0:00:51.5]}
27... Kg6 {[%clk 0:00:30.1]} 28. Qg3+ {[%clk 0:00:51.8]} 28... Bg4 {[%clk
0:00:15.3]} 29. Rxg4+ {[%clk 0:00:49.4]} 29... Kf5 {[%clk 0:00:15.3]} 30. Nd2
{[%clk 0:00:37]} 30... Qd1+ {[%clk 0:00:14.4]} 31. Nf1 {[%clk 0:00:37.9]} 31...
Ke6 {[%clk 0:00:10.7]} 32. Rh4 {[%clk 0:00:27.5]} 32... Kd7 {[%clk 0:00:09.5]}
33. Rh6 {[%clk 0:00:27.8]} 33... f6 {[%clk 0:00:08.6]} 34. Rh7+ {[%clk 0:00:24]}
34... Ke6 {[%clk 0:00:09.2]} 35. Qh3+ {[%clk 0:00:12.8]} 35... Kd6 {[%clk
0:00:08.8]} 36. Qg3+ {[%clk 0:00:11.5]} 36... Kc5 {[%clk 0:00:07.6]} 37. Qe3+
{[%clk 0:00:12.1]} 37... d4 {[%clk 0:00:04.8]} 38. Qe7+ {[%clk 0:00:10.9]} 38...
Kb5 {[%clk 0:00:05.4]} 39. Qb7+ {[%clk 0:00:10.1]} 39... Kc5 {[%clk 0:00:05.9]}
40. Rc7 {[%clk 0:00:09.6]} 40... Qa4 {[%clk 0:00:03.5]} 41. h3 {[%clk
0:00:06.6]} 41... Rfe8 {[%clk 0:00:03.7]} 42. Nd2 {[%clk 0:00:06.3]} 42... Qb5
{[%clk 0:00:03.7]} 43. Ne4+ {[%clk 0:00:04]} 43... Rxe4 {[%clk 0:00:04]} 44.
Qxa8 {[%clk 0:00:04.6]} 44... Re1+ {[%clk 0:00:04.3]} 45. Kh2 {[%clk 0:00:05]}
45... a4 {[%clk 0:00:05]} 46. Qa7+ {[%clk 0:00:04.6]} 46... Qb6 {[%clk
0:00:04.4]} 47. Qxb6+ {[%clk 0:00:02.3]} 47... Kxb6 {[%clk 0:00:05.3]} 48. Rf7
{[%clk 0:00:02.6]} 48... a3 {[%clk 0:00:04.7]} 49. Rf8 {[%clk 0:00:03.3]} 49...
a2 {[%clk 0:00:04.8]} 50. Rb8+ {[%clk 0:00:03.5]} 50... Kc7 {[%clk 0:00:04.8]}
51. Ra8 {[%clk 0:00:03.2]} 51... a1=Q {[%clk 0:00:05.7]} 52. Rxa1 {[%clk
0:00:03.8]} 52... Rxa1 {[%clk 0:00:06.6]} 0-1

[Event "Early-Titled-Tuesday-Blitz-February-06-2024"]
[Site "Chess.com"]
[Date "2024.02.06"]
[Round "11"]
[White "Mikhail_Golubev"]
[Black "Blitzking642"]
[Result "1-0"]
[WhiteElo "2660"]
[BlackElo "2537"]
[TimeControl "180+1"]
[EndTime "10:07:08 PST"]
[Termination "Mikhail_Golubev won on time"]

1. e4 {[%clk 0:03:00.9]} 1... e5 {[%clk 0:02:57.9]} 2. Nf3 {[%clk 0:03:00.7]}
2... Nc6 {[%clk 0:02:55.5]} 3. Bc4 {[%clk 0:03:01]} 3... d6 {[%clk 0:02:55.1]}
4. h3 {[%clk 0:02:49.4]} 4... Be7 {[%clk 0:02:54.5]} 5. O-O {[%clk 0:02:46.7]}
5... Nf6 {[%clk 0:02:52.5]} 6. Re1 {[%clk 0:02:45.8]} 6... O-O {[%clk
0:02:50.9]} 7. d4 {[%clk 0:02:45.5]} 7... exd4 {[%clk 0:02:47.3]} 8. Nxd4 {[%clk
0:02:44.8]} 8... Nxd4 {[%clk 0:02:46.2]} 9. Qxd4 {[%clk 0:02:44.2]} 9... Re8
{[%clk 0:02:46.7]} 10. Nc3 {[%clk 0:02:40.8]} 10... h6 {[%clk 0:02:46.5]} 11.
Bf4 {[%clk 0:02:36.5]} 11... Bf8 {[%clk 0:02:45.5]} 12. Rad1 {[%clk 0:02:34.6]}
12... Be6 {[%clk 0:02:45]} 13. Bb3 {[%clk 0:02:32]} 13... Bxb3 {[%clk
0:02:42.6]} 14. axb3 {[%clk 0:02:30.3]} 14... Nd7 {[%clk 0:02:41.5]} 15. Nd5
{[%clk 0:02:23.2]} 15... g6 {[%clk 0:02:35.9]} 16. Qd2 {[%clk 0:02:05.4]} 16...
Bg7 {[%clk 0:02:33]} 17. Bxh6 {[%clk 0:01:58.6]} 17... Bxb2 {[%clk 0:02:26]} 18.
c3 {[%clk 0:01:53.3]} 18... Ba3 {[%clk 0:02:26]} 19. b4 {[%clk 0:01:13.6]} 19...
a5 {[%clk 0:02:25.9]} 20. Bg5 {[%clk 0:01:13.5]} 20... f6 {[%clk 0:02:24.3]} 21.
Nxf6+ {[%clk 0:01:01.6]} 21... Nxf6 {[%clk 0:02:25.2]} 22. Qa2+ {[%clk
0:01:01.7]} 22... Kg7 {[%clk 0:02:18.1]} 23. Qxa3 {[%clk 0:01:01.3]} 23... Qd7
{[%clk 0:02:07]} 24. Bxf6+ {[%clk 0:00:48.8]} 24... Kxf6 {[%clk 0:02:05.3]} 25.
c4 {[%clk 0:00:47.2]} 25... axb4 {[%clk 0:02:01.4]} 26. Qxb4 {[%clk 0:00:47.8]}
26... Qc6 {[%clk 0:01:59.9]} 27. Rd5 {[%clk 0:00:43.1]} 27... Kf7 {[%clk
0:01:54.1]} 28. Qc3 {[%clk 0:00:39.4]} 28... Ra4 {[%clk 0:01:50.1]} 29. Rc1
{[%clk 0:00:36.7]} 29... Re6 {[%clk 0:01:29.1]} 30. h4 {[%clk 0:00:34]} 30...
Rf6 {[%clk 0:01:27.6]} 31. h5 {[%clk 0:00:26.9]} 31... Ra2 {[%clk 0:01:21.2]}
32. hxg6+ {[%clk 0:00:25.1]} 32... Kxg6 {[%clk 0:01:22.1]} 33. Qg3+ {[%clk
0:00:23.7]} 33... Kf7 {[%clk 0:01:22.2]} 34. f3 {[%clk 0:00:15.9]} 34... Qb6+
{[%clk 0:01:16.6]} 35. c5 {[%clk 0:00:16.1]} 35... Qb2 {[%clk 0:01:17.2]} 36.
Rcd1 {[%clk 0:00:11.3]} 36... Rg6 {[%clk 0:01:16.2]} 37. Qf4+ {[%clk 0:00:10]}
37... Rf6 {[%clk 0:00:36.1]} 38. Qg4 {[%clk 0:00:09.6]} 38... Qf2+ {[%clk
0:00:28.5]} 39. Kh1 {[%clk 0:00:07.2]} 39... Rg6 {[%clk 0:00:13.5]} 40. Rf5+
{[%clk 0:00:06.8]} 40... Kg7 {[%clk 0:00:12.7]} 41. Rg5 {[%clk 0:00:07.1]} 41...
Rxg5 {[%clk 0:00:10]} 42. Qxg5+ {[%clk 0:00:08]} 42... Kf8 {[%clk 0:00:10.2]}
43. cxd6 {[%clk 0:00:08.2]} 43... Qe2 {[%clk 0:00:10.7]} 44. Qf6+ {[%clk
0:00:08]} 44... Kg8 {[%clk 0:00:09.9]} 45. Qg6+ {[%clk 0:00:08.2]} 45... Kf8
{[%clk 0:00:10.3]} 46. Rc1 {[%clk 0:00:08.1]} 46... Qd2 {[%clk 0:00:03.9]} 47.
Qf6+ {[%clk 0:00:08.4]} 47... Kg8 {[%clk 0:00:03.5]} 48. Qd8+ {[%clk 0:00:08.9]}
48... Kg7 {[%clk 0:00:02.9]} 49. Rxc7+ {[%clk 0:00:09.7]} 1-0

[Event "Early-Titled-Tuesday-Blitz-February-06-2024"]
[Site "Chess.com"]
[Date "2024.02.06"]
[Round "11"]
[White "Kildepiotr"]
[Black "Ural_bogatyr"]
[Result "0-1"]
[WhiteElo "2686"]
[BlackElo "2585"]
[TimeControl "180+1"]
[EndTime "10:07:09 PST"]
[Termination "Ural_bogatyr won by checkmate"]

1. Nf3 {[%clk 0:02:57.3]} 1... d5 {[%clk 0:02:58.8]} 2. g3 {[%clk 0:02:57.5]}
2... Nf6 {[%clk 0:02:57.9]} 3. Bg2 {[%clk 0:02:57.9]} 3... e6 {[%clk 0:02:57.9]}
4. O-O {[%clk 0:02:58.5]} 4... Be7 {[%clk 0:02:58.2]} 5. d3 {[%clk 0:02:59.4]}
5... O-O {[%clk 0:02:57.7]} 6. Nbd2 {[%clk 0:03:00.3]} 6... Nc6 {[%clk
0:02:55.8]} 7. e4 {[%clk 0:03:00.6]} 7... e5 {[%clk 0:02:55.3]} 8. c3 {[%clk
0:03:00.3]} 8... h6 {[%clk 0:02:54.7]} 9. Qc2 {[%clk 0:02:59.3]} 9... Bg4 {[%clk
0:02:50.8]} 10. b4 {[%clk 0:02:58.7]} 10... a6 {[%clk 0:02:50.4]} 11. Bb2 {[%clk
0:02:56.8]} 11... Bh5 {[%clk 0:02:49.6]} 12. Rfe1 {[%clk 0:02:53.8]} 12... Bg6
{[%clk 0:02:47.6]} 13. exd5 {[%clk 0:02:42.7]} 13... Nxd5 {[%clk 0:02:28.1]} 14.
Nxe5 {[%clk 0:02:42.7]} 14... Nxe5 {[%clk 0:01:58.5]} 15. Rxe5 {[%clk
0:02:43.6]} 15... Nb6 {[%clk 0:01:57.8]} 16. Be4 {[%clk 0:02:34.9]} 16... f5
{[%clk 0:01:55.1]} 17. Bxb7 {[%clk 0:02:32.5]} 17... Rb8 {[%clk 0:01:53.3]} 18.
Bxa6 {[%clk 0:02:29]} 18... f4 {[%clk 0:01:52.5]} 19. Ne4 {[%clk 0:02:16.9]}
19... Qd7 {[%clk 0:01:46.5]} 20. d4 {[%clk 0:02:09.1]} 20... Bd6 {[%clk
0:01:40.6]} 21. Ra5 {[%clk 0:01:39.3]} 21... Qg4 {[%clk 0:01:32]} 22. Bd3 {[%clk
0:01:27.9]} 22... fxg3 {[%clk 0:01:25.5]} 23. hxg3 {[%clk 0:01:26]} 23... Rf3
{[%clk 0:00:55.5]} 24. Re1 {[%clk 0:00:37.8]} 24... Rbf8 {[%clk 0:00:49.5]} 25.
Re5 {[%clk 0:00:31.5]} 25... Bxe5 {[%clk 0:00:44.2]} 26. dxe5 {[%clk 0:00:32.4]}
26... Nd5 {[%clk 0:00:27.9]} 27. Bc1 {[%clk 0:00:27.9]} 27... Nf4 {[%clk
0:00:14.7]} 28. Bxf4 {[%clk 0:00:27.3]} 28... R8xf4 {[%clk 0:00:14.2]} 29. Nf6+
{[%clk 0:00:11.4]} 29... Rxf6 {[%clk 0:00:12.4]} 30. exf6 {[%clk 0:00:10.4]}
30... Rxd3 {[%clk 0:00:06]} 31. f7+ {[%clk 0:00:05.8]} 31... Kxf7 {[%clk
0:00:05.4]} 32. Qb3+ {[%clk 0:00:05.9]} 32... Kf8 {[%clk 0:00:03.6]} 33. Qa4
{[%clk 0:00:04.9]} 33... Qd7 {[%clk 0:00:03.2]} 34. Qa8+ {[%clk 0:00:04.7]}
34... Qd8 {[%clk 0:00:03.3]} 35. Qc6 {[%clk 0:00:04.5]} 35... Bf7 {[%clk
0:00:03.2]} 36. Qc5+ {[%clk 0:00:04.5]} 36... Rd6 {[%clk 0:00:03.3]} 37. c4
{[%clk 0:00:04]} 37... Kg8 {[%clk 0:00:03.6]} 38. b5 {[%clk 0:00:04.3]} 38...
Rd1 {[%clk 0:00:04.1]} 39. Qe5 {[%clk 0:00:03.9]} 39... Rxe1+ {[%clk 0:00:04.1]}
40. Qxe1 {[%clk 0:00:04.8]} 40... Qd4 {[%clk 0:00:04.5]} 41. a4 {[%clk
0:00:04.5]} 41... Qxc4 {[%clk 0:00:04.1]} 42. Qd1 {[%clk 0:00:04.2]} 42... Kh7
{[%clk 0:00:03.2]} 43. Kh2 {[%clk 0:00:03.3]} 43... Bg6 {[%clk 0:00:03.6]} 44.
a5 {[%clk 0:00:02.6]} 44... Qxb5 {[%clk 0:00:03.6]} 45. Qd2 {[%clk 0:00:03.4]}
45... Qc5 {[%clk 0:00:03.8]} 46. Kg1 {[%clk 0:00:03.1]} 46... Be4 {[%clk
0:00:03.4]} 47. Qa2 {[%clk 0:00:03.2]} 47... Qh5 {[%clk 0:00:03.2]} 48. f3
{[%clk 0:00:03.2]} 48... Qxf3 {[%clk 0:00:03.3]} 49. Kh2 {[%clk 0:00:02.3]}
49... Qh1# {[%clk 0:00:03.2]} 0-1

[Event "Early-Titled-Tuesday-Blitz-February-06-2024"]
[Site "Chess.com"]
[Date "2024.02.06"]
[Round "11"]
[White "ljm509"]
[Black "ValiantCeleb"]
[Result "1-0"]
[WhiteElo "2006"]
[BlackElo "2172"]
[TimeControl "180+1"]
[EndTime "10:07:11 PST"]
[Termination "ljm509 won on time"]

1. e4 {[%clk 0:03:00]} 1... e5 {[%clk 0:02:58.3]} 2. Nf3 {[%clk 0:02:59.9]} 2...
Nc6 {[%clk 0:02:58.2]} 3. Bc4 {[%clk 0:02:59.9]} 3... Bc5 {[%clk 0:02:57]} 4. d3
{[%clk 0:02:59.8]} 4... Nf6 {[%clk 0:02:55.9]} 5. a4 {[%clk 0:02:59.7]} 5... O-O
{[%clk 0:02:51.7]} 6. O-O {[%clk 0:02:58.9]} 6... a5 {[%clk 0:02:50.7]} 7. h3
{[%clk 0:02:57.4]} 7... h6 {[%clk 0:02:49]} 8. Re1 {[%clk 0:02:56.9]} 8... Re8
{[%clk 0:02:46.8]} 9. Nc3 {[%clk 0:02:56.3]} 9... d6 {[%clk 0:02:45.1]} 10. Be3
{[%clk 0:02:55.6]} 10... Bxe3 {[%clk 0:02:42.3]} 11. fxe3 {[%clk 0:02:50.6]}
11... Be6 {[%clk 0:02:39.9]} 12. Nd5 {[%clk 0:02:47]} 12... Bxd5 {[%clk
0:02:36.1]} 13. Bxd5 {[%clk 0:02:44.1]} 13... Nxd5 {[%clk 0:02:35.3]} 14. exd5
{[%clk 0:02:44.1]} 14... Ne7 {[%clk 0:02:35.5]} 15. e4 {[%clk 0:02:43.5]} 15...
Ng6 {[%clk 0:02:28.7]} 16. Rf1 {[%clk 0:02:42.2]} 16... Rf8 {[%clk 0:02:26]} 17.
Qe1 {[%clk 0:02:37.9]} 17... f5 {[%clk 0:02:15.3]} 18. Kh2 {[%clk 0:02:35.9]}
18... f4 {[%clk 0:02:10.9]} 19. d4 {[%clk 0:02:28.4]} 19... Qe7 {[%clk
0:01:51.8]} 20. dxe5 {[%clk 0:02:19.7]} 20... Nxe5 {[%clk 0:01:51.2]} 21. Nd4
{[%clk 0:02:18]} 21... g5 {[%clk 0:01:37.4]} 22. Nf5 {[%clk 0:02:02.6]} 22...
Qh7 {[%clk 0:01:20.3]} 23. b3 {[%clk 0:01:50.7]} 23... b6 {[%clk 0:01:13.8]} 24.
Qe2 {[%clk 0:01:50]} 24... h5 {[%clk 0:01:10.8]} 25. Kg1 {[%clk 0:01:43.3]}
25... Rae8 {[%clk 0:01:08]} 26. Rae1 {[%clk 0:01:40.8]} 26... Ng6 {[%clk
0:00:52.2]} 27. Nd4 {[%clk 0:01:25.9]} 27... Rf6 {[%clk 0:00:15.4]} 28. Ne6
{[%clk 0:01:23.9]} 28... Rfxe6 {[%clk 0:00:12.6]} 29. dxe6 {[%clk 0:01:23.7]}
29... Rxe6 {[%clk 0:00:13.5]} 30. Qc4 {[%clk 0:01:23.3]} 30... Qe7 {[%clk
0:00:12.7]} 31. Qd5 {[%clk 0:01:16.3]} 31... Ne5 {[%clk 0:00:12]} 32. h4 {[%clk
0:01:12.5]} 32... Kg7 {[%clk 0:00:08.9]} 33. hxg5 {[%clk 0:01:10.8]} 33... Ng6
{[%clk 0:00:08.7]} 34. Qf5 {[%clk 0:01:07.5]} 34... Re5 {[%clk 0:00:08.1]} 35.
Qf6+ {[%clk 0:01:07.4]} 35... Qxf6 {[%clk 0:00:08.1]} 36. gxf6+ {[%clk
0:01:08.3]} 36... Kxf6 {[%clk 0:00:08.9]} 37. g3 {[%clk 0:01:08.9]} 37... Kg5
{[%clk 0:00:08.3]} 38. gxf4+ {[%clk 0:01:08.8]} 38... Nxf4 {[%clk 0:00:08.9]}
39. Kf2 {[%clk 0:01:08.8]} 39... Ne6 {[%clk 0:00:05.6]} 40. Rg1+ {[%clk
0:01:05.5]} 40... Kf6 {[%clk 0:00:05.5]} 41. c3 {[%clk 0:01:01.6]} 41... Ng5
{[%clk 0:00:04.9]} 42. Rgf1 {[%clk 0:00:57.1]} 42... Nxe4+ {[%clk 0:00:04.4]}
43. Ke3+ {[%clk 0:00:56.6]} 43... Ke6 {[%clk 0:00:04.3]} 44. Kd4 {[%clk
0:00:54.7]} 44... Nc5 {[%clk 0:00:03.8]} 45. Rxe5+ {[%clk 0:00:53.6]} 45...
dxe5+ {[%clk 0:00:04]} 46. Kc4 {[%clk 0:00:54.5]} 46... c6 {[%clk 0:00:03.6]}
47. Rh1 {[%clk 0:00:53.9]} 47... e4 {[%clk 0:00:03.2]} 48. Rxh5 {[%clk
0:00:53.9]} 48... e3 {[%clk 0:00:02.8]} 49. Rh3 {[%clk 0:00:52.1]} 49... Kd6
{[%clk 0:00:02.1]} 50. Rxe3 {[%clk 0:00:52]} 50... Nd7 {[%clk 0:00:02.5]} 51.
Rd3+ {[%clk 0:00:51.7]} 51... Kc7 {[%clk 0:00:02.6]} 52. Rh3 {[%clk 0:00:49.7]}
52... Kd6 {[%clk 0:00:02.3]} 53. b4 {[%clk 0:00:49.4]} 53... Ne5+ {[%clk
0:00:02.2]} 54. Kd4 {[%clk 0:00:48.5]} 54... c5+ {[%clk 0:00:02.3]} 55. bxc5+
{[%clk 0:00:45.4]} 55... bxc5+ {[%clk 0:00:03.2]} 56. Ke4 {[%clk 0:00:45.8]}
56... Nc4 {[%clk 0:00:03.3]} 57. Rh6+ {[%clk 0:00:45.6]} 57... Kc7 {[%clk
0:00:03.5]} 58. Ra6 {[%clk 0:00:44.8]} 58... Nd2+ {[%clk 0:00:02.5]} 59. Kd5
{[%clk 0:00:44.6]} 59... Nb3 {[%clk 0:00:02.3]} 60. c4 {[%clk 0:00:40.5]} 60...
Kb7 {[%clk 0:00:01.7]} 61. Rc6 {[%clk 0:00:40.4]} 1-0

[Event "Early-Titled-Tuesday-Blitz-February-06-2024"]
[Site "Chess.com"]
[Date "2024.02.06"]
[Round "11"]
[White "Hikaru"]
[Black "Sina_Movahed"]
[Result "1-0"]
[WhiteElo "3307"]
[BlackElo "3042"]
[TimeControl "180+1"]
[EndTime "10:07:13 PST"]
[Termination "Hikaru won by resignation"]

1. e4 {[%clk 0:03:00.9]} 1... c5 {[%clk 0:02:58.1]} 2. Nf3 {[%clk 0:02:59.9]}
2... d6 {[%clk 0:02:58.6]} 3. d4 {[%clk 0:03:00.2]} 3... cxd4 {[%clk 0:02:59.5]}
4. Qxd4 {[%clk 0:03:01]} 4... Nc6 {[%clk 0:02:59.2]} 5. Bb5 {[%clk 0:03:00.9]}
5... Bd7 {[%clk 0:02:59.7]} 6. Bxc6 {[%clk 0:03:01.4]} 6... Bxc6 {[%clk
0:03:00.6]} 7. Nc3 {[%clk 0:03:02.2]} 7... Nf6 {[%clk 0:03:00.2]} 8. Bg5 {[%clk
0:03:02.5]} 8... e6 {[%clk 0:02:59.6]} 9. O-O-O {[%clk 0:03:02.5]} 9... Be7
{[%clk 0:03:00.2]} 10. Qd3 {[%clk 0:03:03.1]} 10... h6 {[%clk 0:02:58.2]} 11.
Bf4 {[%clk 0:02:56.8]} 11... O-O {[%clk 0:02:56.8]} 12. Qe2 {[%clk 0:02:40.7]}
12... Qc7 {[%clk 0:02:33.9]} 13. e5 {[%clk 0:02:35.4]} 13... dxe5 {[%clk
0:02:33.9]} 14. Nxe5 {[%clk 0:02:30.9]} 14... Qb6 {[%clk 0:02:33.2]} 15. Rd3
{[%clk 0:02:15.1]} 15... Rfd8 {[%clk 0:02:19.7]} 16. Rg3 {[%clk 0:02:03.2]}
16... Kf8 {[%clk 0:02:03.3]} 17. Re1 {[%clk 0:02:02.7]} 17... Be8 {[%clk
0:01:53]} 18. Rf3 {[%clk 0:01:39]} 18... Rac8 {[%clk 0:01:50.7]} 19. g4 {[%clk
0:01:39.2]} 19... Qa6 {[%clk 0:01:40.2]} 20. Qxa6 {[%clk 0:01:10]} 20... bxa6
{[%clk 0:01:41.1]} 21. h4 {[%clk 0:01:09.3]} 21... Kg8 {[%clk 0:01:26.1]} 22. g5
{[%clk 0:01:08.2]} 22... hxg5 {[%clk 0:01:27]} 23. hxg5 {[%clk 0:00:56.4]} 23...
Nd5 {[%clk 0:01:23.4]} 24. Nxd5 {[%clk 0:00:54.8]} 24... Rxd5 {[%clk 0:01:24.3]}
25. Rh3 {[%clk 0:00:55]} 25... f6 {[%clk 0:01:17.8]} 26. gxf6 {[%clk 0:00:55.9]}
26... Bxf6 {[%clk 0:01:18.3]} 27. c3 {[%clk 0:00:52]} 27... a5 {[%clk
0:00:40.6]} 28. Ng4 {[%clk 0:00:50.3]} 28... Bd4 {[%clk 0:00:37.3]} 29. Rg3
{[%clk 0:00:44.9]} 29... Kf8 {[%clk 0:00:36]} 30. Be5 {[%clk 0:00:41.8]} 30...
Bxe5 {[%clk 0:00:31.5]} 31. Nxe5 {[%clk 0:00:42.7]} 31... Rc7 {[%clk 0:00:30.7]}
32. f4 {[%clk 0:00:39]} 32... a4 {[%clk 0:00:30.4]} 33. Rh1 {[%clk 0:00:38.8]}
33... Kg8 {[%clk 0:00:25.2]} 34. Rgh3 {[%clk 0:00:38]} 34... Kf8 {[%clk
0:00:25.6]} 35. Rh8+ {[%clk 0:00:37.3]} 35... Ke7 {[%clk 0:00:26]} 36. Rg1
{[%clk 0:00:35.9]} 36... g6 {[%clk 0:00:26.4]} 37. Nxg6+ {[%clk 0:00:27.9]}
37... Bxg6 {[%clk 0:00:26]} 38. Rxg6 {[%clk 0:00:28.8]} 38... Rc4 {[%clk
0:00:24.3]} 39. Rh7+ {[%clk 0:00:24.8]} 39... Kd6 {[%clk 0:00:23.7]} 40. Rhh6
{[%clk 0:00:20.3]} 40... Re4 {[%clk 0:00:23.3]} 41. Rh2 {[%clk 0:00:15.8]} 41...
Rxf4 {[%clk 0:00:22.7]} 42. Rg7 {[%clk 0:00:16.4]} 42... a5 {[%clk 0:00:21.7]}
43. Ra7 {[%clk 0:00:17]} 43... Re4 {[%clk 0:00:21.8]} 44. Ra6+ {[%clk
0:00:16.8]} 44... Ke5 {[%clk 0:00:13.5]} 45. Rh5+ {[%clk 0:00:14.8]} 45... Kf4
{[%clk 0:00:14]} 46. Rxd5 {[%clk 0:00:15.1]} 46... exd5 {[%clk 0:00:14.6]} 47.
Rxa5 {[%clk 0:00:15.8]} 47... Re1+ {[%clk 0:00:12.7]} 48. Kd2 {[%clk 0:00:15.7]}
48... Ra1 {[%clk 0:00:10.5]} 49. Rxa4+ {[%clk 0:00:15.8]} 49... Ke5 {[%clk
0:00:11.4]} 50. Kc2 {[%clk 0:00:15.4]} 50... Rg1 {[%clk 0:00:11.1]} 51. Kb3
{[%clk 0:00:15.8]} 51... Rg2 {[%clk 0:00:12]} 52. Rh4 {[%clk 0:00:15.9]} 52...
Rg8 {[%clk 0:00:11.8]} 53. a4 {[%clk 0:00:16.3]} 53... Kd6 {[%clk 0:00:12.3]}
54. Ka3 {[%clk 0:00:16.6]} 54... Kc5 {[%clk 0:00:13.2]} 55. b4+ {[%clk 0:00:17]}
55... Kd6 {[%clk 0:00:12.9]} 56. Rh6+ {[%clk 0:00:17.7]} 56... Ke5 {[%clk
0:00:12.6]} 57. b5 {[%clk 0:00:18.3]} 57... Ke4 {[%clk 0:00:12.6]} 58. b6 {[%clk
0:00:16]} 58... Kd3 {[%clk 0:00:13.5]} 59. Kb4 {[%clk 0:00:15.8]} 59... Rg4+
{[%clk 0:00:13.1]} 60. Kb3 {[%clk 0:00:16.2]} 1-0